fUSD/lending_fUSD_20250514
["ID","MTS","AMOUNT","RATE_DAILY","PERIOD"]
[361019369,1747206654976,-506.5,0.00011232,2]
[361019370,1747206654985,-400.0,0.00011232,2]
[361019371,1747206654995,-400.0,0.00011232,2]
[361019372,1747206655005,-562.53,0.00011232,2]
[361019373,1747206655016,-589.74,0.00011232,2]
[361019374,1747206655026,-400.0,0.00011232,2]
[361019375,1747206655036,-400.0,0.00011232,2]
[361019376,1747206655046,-1128.03,0.00011232,2]
[361019377,1747206655056,-400.0,0.00011232,2]
[361019378,1747206655065,-450.23,0.00011232,2]
[361019379,1747206655075,-400.0,0.00011232,2]
[361019380,1747206655085,-441.4,0.00011232,2]
[361019381,1747206655095,-445.34,0.00011232,2]
[361019382,1747206655104,-1564.06,0.00011232,2]
[361019383,1747206655113,-400.0,0.00011232,2]
[361019384,1747206655123,-1415.89,0.00011232,2]
[361019385,1747206655134,-400.0,0.00011232,2]
[361019386,1747206655144,-1466.38,0.00011232,2]
[361019387,1747206655153,-400.0,0.00011232,2]
[361019388,1747206655162,-423.50613318,0.00011232,2]
[361019389,1747206655172,-1364.13,0.00011232,2]
[361019390,1747206655181,-400.0,0.00011232,2]
[361019391,1747206655191,-400.0,0.00011232,2]
[361019392,1747206655200,-361.41931009,0.00011232,2]
[361019393,1747206655209,-2839.08,0.00011232,2]
[361019394,1747206655218,-400.0,0.00011232,2]
[361019395,1747206655227,-453.86,0.00011232,2]
[361019396,1747206655236,-1563.23,0.00011232,2]
[361019397,1747206655246,-400.0,0.00011232,2]
[361019398,1747206655255,-400.0,0.00011232,2]
[361019399,1747206655267,-346.44006266,0.00011232,2]
[361019400,1747206655276,-400.0,0.00011232,2]
[361019401,1747206655286,-400.0,0.00011232,2]
[361019402,1747206655295,-627.19,0.00011232,2]
[361019403,1747206655306,-1603.87,0.00011232,2]
[361019404,1747206655316,-400.0,0.00011232,2]
[361019405,1747206655325,-856.07,0.00011232,2]
[361019406,1747206655334,-400.0,0.00011232,2]
[361019407,1747206655344,-400.0,0.00011232,2]
[361019408,1747206655354,-334.27222112,0.00011232,2]
[361019409,1747206655363,-400.0,0.00011232,2]
[361019410,1747206655372,-745.81,0.00011232,2]
[361019411,1747206655381,-400.0,0.00011232,2]
[361019412,1747206655390,-400.0,0.00011232,2]
[361019413,1747206655399,-400.0,0.00011232,2]
[361019414,1747206655409,-760.93,0.00011232,2]
[361019415,1747206655419,-493.42,0.00011232,2]
[361019416,1747206655427,-841.04,0.00011232,2]
[361019417,1747206655437,-400.0,0.00011232,2]
[361019418,1747206655446,-476.08,0.00011232,2]
[361019419,1747206655455,-151.01,0.00011232,2]
[361019420,1747206655464,-400.0,0.00011232,2]
[361019421,1747206655473,-400.0,0.00011232,2]
[361019422,1747206655483,-400.0,0.00011232,2]
[361019423,1747206655492,-519.0,0.00011232,2]
[361019424,1747206655501,-400.0,0.00011232,2]
[361019425,1747206655510,-400.0,0.00011232,2]
[361019426,1747206655519,-400.0,0.00011232,2]
[361019427,1747206655529,-400.0,0.00011232,2]
[361019428,1747206655538,-1414.66,0.00011232,2]
[361019429,1747206655548,-462.98,0.00011232,2]
[361019430,1747206655559,-400.0,0.00011232,2]
[361019431,1747206655569,-520.30625514,0.00011232,2]
[361019432,1747206655579,-505.82,0.00011232,2]
[361019433,1747206655589,-210.92848146,0.00011232,2]
[361019434,1747206655598,-1176.61,0.00011232,2]
[361019435,1747206655608,-427.64,0.00011232,2]
[361019436,1747206655618,-546.87495389,0.00011232,2]
[361019437,1747206655627,-205.87441084,0.00011232,2]
[361019438,1747206655636,-514.47434805,0.00011232,2]
[361019439,1747206655646,-400.0,0.00011232,2]
[361019440,1747206655656,-1227.25,0.00011232,2]
[361019441,1747206655665,-400.0,0.00011232,2]
[361019442,1747206655675,-511.43,0.00011232,2]
[361019443,1747206655684,-400.0,0.00011232,2]
[361019444,1747206655693,-400.0,0.00011232,2]
[361019445,1747206655702,-400.0,0.00011232,2]
[361019446,1747206655712,-495.63,0.00011232,2]
[361019447,1747206655722,-420.32,0.00011232,2]
[361019448,1747206655732,-400.0,0.00011232,2]
[361019449,1747206655743,-400.0,0.00011232,2]
[361019450,1747206655752,-400.0,0.00011232,2]
[361019451,1747206655764,-823.04,0.00011232,2]
[361019452,1747206655774,-400.0,0.00011232,2]
[361019453,1747206655783,-400.0,0.00011232,2]
[361019454,1747206655792,-223.83980355,0.00011232,2]
[361019455,1747206655803,-400.0,0.00011232,2]
[361019456,1747206655813,-517.48940091,0.00011232,2]
[361019457,1747206655822,-400.0,0.00011232,2]
[361019458,1747206655832,-659.45,0.00011232,2]
[361019459,1747206655842,-606.33,0.00011232,2]
[361019460,1747206655853,-717.5,0.00011232,2]
[361019461,1747206655863,-400.0,0.00011232,2]
[361019462,1747206655872,-714.75,0.00011232,2]
[361019463,1747206655884,-400.0,0.00011232,2]
[361019464,1747206655893,-400.0,0.00011232,2]
[361019465,1747206655903,-462.06,0.00011232,2]
[361019466,1747206655913,-400.0,0.00011232,2]
[361019467,1747206655923,-1347.57,0.00011232,2]
[361019468,1747206655932,-400.0,0.00011232,2]
[361019469,1747206655942,-422.76,0.00011232,2]
[361019470,1747206655953,-400.0,0.00011232,2]
[361019471,1747206655963,-400.0,0.00011232,2]
[361019472,1747206655973,-441.49,0.00011232,2]
[361019473,1747206655982,-400.0,0.00011232,2]
[361019474,1747206655993,-645.71,0.00011232,2]
[361019475,1747206656003,-745.42,0.00011232,2]
[361019476,1747206656012,-969.06,0.00011232,2]
[361019477,1747206656022,-400.0,0.00011232,2]
[361019478,1747206656031,-739.53,0.00011232,2]
[361019479,1747206656041,-400.0,0.00011232,2]
[361019480,1747206656051,-400.0,0.00011232,2]
[361019481,1747206656062,-1417.56,0.00011232,2]
[361019482,1747206656072,-400.0,0.00011232,2]
[361019483,1747206656082,-3382.12,0.00011232,2]
[361019484,1747206656091,-400.0,0.00011232,2]
[361019485,1747206656102,-476.29,0.00011232,2]
[361019486,1747206656113,-905.18,0.00011232,2]
[361019487,1747206656123,-494.2,0.00011232,2]
[361019488,1747206656132,-400.0,0.00011232,2]
[361019489,1747206656142,-730.63,0.00011232,2]
[361019490,1747206656152,-400.0,0.00011232,2]
[361019491,1747206656162,-400.0,0.00011232,2]
[361019492,1747206656172,-400.0,0.00011232,2]
[361019493,1747206656182,-530.57,0.00011232,2]
[361019494,1747206656191,-758.37,0.00011232,2]
[361019495,1747206656201,-1295.55,0.00011232,2]
[361019496,1747206656210,-1266.69,0.00011232,2]
[361019497,1747206656219,-400.0,0.00011232,2]
[361019498,1747206656229,-621.19,0.00011232,2]
[361019499,1747206656238,-784.77,0.00011232,2]
[361019500,1747206656247,-603.14,0.00011232,2]
[361019501,1747206656257,-400.0,0.00011232,2]
[361019502,1747206656269,-400.0,0.00011232,2]
[361019503,1747206656278,-2380.46,0.00011232,2]
[361019504,1747206656287,-407.32,0.00011232,2]
[361019505,1747206656296,-400.0,0.00011232,2]
[361019506,1747206656306,-400.0,0.00011232,2]
[361019507,1747206656315,-400.0,0.00011232,2]
[361019508,1747206656325,-400.0,0.00011232,2]
[361019509,1747206656335,-462.42,0.00011232,2]
[361019510,1747206656344,-689.84,0.00011232,2]
[361019511,1747206656354,-400.0,0.00011232,2]
[361019512,1747206656363,-400.0,0.00011232,2]
[361019513,1747206656372,-4405.27,0.00011232,2]
[361019514,1747206656382,-400.0,0.00011232,2]
[361019515,1747206656391,-400.0,0.00011232,2]
[361019516,1747206656400,-1115.59,0.00011232,2]
[361019517,1747206656410,-429.19,0.00011232,2]
[361019518,1747206656419,-1025.26,0.00011232,2]
[361019519,1747206656429,-400.0,0.00011232,2]
[361019520,1747206656439,-400.0,0.00011232,2]
[361019521,1747206656448,-400.0,0.00011232,2]
[361019522,1747206656457,-400.0,0.00011232,2]
[361019523,1747206656467,-737.55,0.00011232,2]
[361019524,1747206656476,-481.79,0.00011232,2]
[361019525,1747206656486,-489.93,0.00011232,2]
[361019526,1747206656495,-400.0,0.00011232,2]
[361019527,1747206656505,-400.0,0.00011232,2]
[361019528,1747206656515,-400.0,0.00011232,2]
[361019529,1747206656524,-854.76,0.00011232,2]
[361019530,1747206656533,-426.26,0.00011232,2]
[361019531,1747206656545,-400.0,0.00011232,2]
[361019532,1747206656554,-546.36,0.00011232,2]
[361019533,1747206656563,-400.0,0.00011232,2]
[361019534,1747206656572,-405.09,0.00011232,2]
[361019535,1747206656582,-400.0,0.00011232,2]
[361019536,1747206656591,-400.0,0.00011232,2]
[361019537,1747206656601,-414.32,0.00011232,2]
[361019538,1747206656610,-175.76316753,0.00011232,2]
[361019539,1747206656619,-400.0,0.00011232,2]
[361019540,1747206656629,-400.0,0.00011232,2]
[361019541,1747206656639,-400.0,0.00011232,2]
[361019542,1747206656649,-400.0,0.00011232,2]
[361019543,1747206656659,-400.0,0.00011232,2]
[361019544,1747206656669,-400.0,0.00011232,2]
[361019545,1747206656679,-400.0,0.00011232,2]
[361019546,1747206656688,-400.0,0.00011232,2]
[361019547,1747206656698,-414.71,0.00011232,2]
[361019548,1747206656707,-400.0,0.00011232,2]
[361019549,1747206656717,-400.0,0.00011232,2]
[361019550,1747206656726,-400.0,0.00011232,2]
[361019551,1747206656735,-418.28,0.00011232,2]
[361019552,1747206656745,-400.0,0.00011232,2]
[361019553,1747206656754,-875.11,0.00011232,2]
[361019554,1747206656763,-400.0,0.00011232,2]
[361019555,1747206656772,-400.0,0.00011232,2]
[361019556,1747206656782,-400.0,0.00011232,2]
[361019557,1747206656791,-400.0,0.00011232,2]
[361019558,1747206656800,-400.0,0.00011232,2]
[361019559,1747206656809,-400.0,0.00011232,2]
[361019560,1747206656819,-400.0,0.00011232,2]
[361019561,1747206656828,-428.81,0.00011232,2]
[361019562,1747206656838,-583.19,0.00011232,2]
[361019563,1747206656847,-400.0,0.00011232,2]
[361019564,1747206656856,-1008.4,0.00011232,2]
[361019565,1747206656865,-400.0,0.00011232,2]
[361019566,1747206656875,-400.0,0.00011232,2]
[361019567,1747206656884,-1406.85,0.00011232,2]
[361019568,1747206656894,-400.0,0.00011232,2]
[361019569,1747206656903,-400.0,0.00011232,2]
[361019570,1747206656913,-643.55,0.00011232,2]
[361019571,1747206656923,-646.08,0.00011232,2]
[361019572,1747206656933,-400.0,0.00011232,2]
[361019573,1747206656942,-423.1019047,0.00011232,2]
[361019574,1747206656951,-421.39,0.00011232,2]
[361019575,1747206656960,-400.0,0.00011232,2]
[361019576,1747206656970,-400.0,0.00011232,2]
[361019577,1747206656980,-400.0,0.00011232,2]
[361019578,1747206656991,-400.0,0.00011232,2]
[361019579,1747206657000,-2791.29,0.00011232,2]
[361019580,1747206657010,-400.0,0.00011232,2]
[361019581,1747206657019,-443.39828611,0.00011232,2]
[361019582,1747206657028,-400.0,0.00011232,2]
[361019583,1747206657038,-1587.96,0.00011232,2]
[361019584,1747206657047,-400.0,0.00011232,2]
[361019585,1747206657057,-400.0,0.00011232,2]
[361019586,1747206657066,-400.0,0.00011232,2]
[361019587,1747206657076,-400.0,0.00011232,2]
[361019588,1747206657086,-510.57396666,0.00011232,2]
[361019589,1747206657095,-179.03911377,0.00011232,2]
[361019590,1747206657105,-400.0,0.00011232,2]
[361019591,1747206657115,-1061.47,0.00011232,2]
[361019592,1747206657125,-596.73,0.00011232,2]
[361019593,1747206657134,-1156.0,0.00011232,2]
[361019594,1747206657144,-1381.79,0.00011232,2]
[361019595,1747206657153,-400.0,0.00011232,2]
[361019596,1747206657163,-400.0,0.00011232,2]
[361019597,1747206657172,-400.0,0.00011232,2]
[361019598,1747206657182,-400.0,0.00011232,2]
[361019599,1747206657191,-400.0,0.00011232,2]
[361019600,1747206657200,-400.0,0.00011232,2]
[361019601,1747206657209,-742.4,0.00011232,2]
[361019602,1747206657218,-292.69341813,0.00011232,2]
[361019603,1747206657227,-400.0,0.00011232,2]
[361019604,1747206657236,-3079.93,0.00011232,2]
[361019605,1747206657246,-400.0,0.00011232,2]
[361019606,1747206657255,-432.87,0.00011232,2]
[361019607,1747206657267,-400.0,0.00011232,2]
[361019608,1747206657276,-1187.75,0.00011232,2]
[361019609,1747206657285,-664.45,0.00011232,2]
[361019610,1747206657294,-400.0,0.00011232,2]
[361019611,1747206657305,-400.0,0.00011232,2]
[361019612,1747206657315,-400.0,0.00011232,2]
[361019613,1747206657324,-400.0,0.00011232,2]
[361019614,1747206657333,-510.8,0.00011232,2]
[361019615,1747206657343,-784.08,0.00011232,2]
[361019616,1747206657353,-316.28214517,0.00011232,2]
[361019617,1747206657362,-1143.22,0.00011232,2]
[361019618,1747206657372,-1392.97,0.00011232,2]
[361019619,1747206657381,-400.0,0.00011232,2]
[361019620,1747206657391,-400.0,0.00011232,2]
[361019621,1747206657401,-400.0,0.00011232,2]
[361019622,1747206657411,-400.0,0.00011232,2]
[361019623,1747206657420,-493.63,0.00011232,2]
[361019624,1747206657430,-400.0,0.00011232,2]
[361019625,1747206657439,-185.99995081,0.00011232,2]
[361019626,1747206657448,-1657.94,0.00011232,2]
[361019627,1747206657458,-752.99,0.00011232,2]
[361019628,1747206657467,-5186.22,0.00011232,2]
[361019629,1747206657476,-804.99,0.00011232,2]
[361019630,1747206657486,-530.66,0.00011232,2]
[361019631,1747206657689,-400.0,0.00011232,2]
[361019632,1747206657699,-400.0,0.00011232,2]
[361019633,1747206657709,-400.0,0.00011232,2]
[361019634,1747206657718,-400.0,0.00011232,2]
[361019635,1747206657729,-517.39,0.00011232,2]
[361019636,1747206657740,-400.0,0.00011232,2]
[361019637,1747206657750,-400.0,0.00011232,2]
[361019638,1747206657759,-400.0,0.00011232,2]
[361019639,1747206657768,-400.0,0.00011232,2]
[361019640,1747206657778,-505.33931459,0.00011232,2]
[361019641,1747206657789,-1194.64,0.00011232,2]
[361019642,1747206657798,-400.0,0.00011232,2]
[361019643,1747206657808,-400.0,0.00011232,2]
[361019644,1747206657818,-876.54,0.00011232,2]
[361019645,1747206657828,-400.0,0.00011232,2]
[361019646,1747206657837,-400.0,0.00011232,2]
[361019647,1747206657847,-400.0,0.00011232,2]
[361019648,1747206657857,-400.0,0.00011232,2]
[361019649,1747206657867,-1000.0,0.00011232,2]
[361019650,1747206657876,-6912.7,0.00011232,2]
[361019651,1747206657886,-1000.0,0.00011232,2]
[361019652,1747206657897,-193.81252248,0.00011232,2]
[361019653,1747206657907,-400.0,0.00011232,2]
[361019654,1747206657916,-422.51211976,0.00011232,2]
[361019655,1747206657926,-400.0,0.00011232,2]
[361019656,1747206657935,-2578.29,0.00011232,2]
[361019657,1747206657944,-400.0,0.00011232,2]
[361019658,1747206657954,-400.0,0.00011232,2]
[361019659,1747206657963,-1005.65,0.00011232,2]
[361019660,1747206657972,-400.0,0.00011232,2]
[361019661,1747206657982,-453.68,0.00011232,2]
[361019662,1747206657991,-400.0,0.00011232,2]
[361019663,1747206658001,-400.0,0.00011232,2]
[361019664,1747206658011,-539.9,0.00011232,2]
[361019665,1747206658020,-400.0,0.00011232,2]
[361019666,1747206658030,-421.06,0.00011232,2]
[361019667,1747206658039,-400.0,0.00011232,2]
[361019668,1747206658049,-931.78,0.00011232,2]
[361019669,1747206658058,-400.0,0.00011232,2]
[361019670,1747206658068,-448.75,0.00011232,2]
[361019671,1747206658078,-1046.39,0.00011232,2]
[361019672,1747206658087,-546.83,0.00011232,2]
[361019673,1747206658097,-400.0,0.00011232,2]
[361019674,1747206658107,-400.0,0.00011232,2]
[361019675,1747206658117,-3025.22,0.00011232,2]
[361019676,1747206658126,-403.75,0.00011232,2]
[361019677,1747206658136,-400.0,0.00011232,2]
[361019678,1747206658145,-400.0,0.00011232,2]
[361019679,1747206658154,-400.0,0.00011232,2]
[361019680,1747206658164,-849.98,0.00011232,2]
[361019681,1747206658173,-400.0,0.00011232,2]
[361019682,1747206658182,-1803.74,0.00011232,2]
[361019683,1747206658192,-692.61,0.00011232,2]
[361019684,1747206658201,-400.0,0.00011232,2]
[361019685,1747206658210,-400.0,0.00011232,2]
[361019686,1747206658219,-8013.87,0.00011232,2]
[361019687,1747206658228,-400.0,0.00011232,2]
[361019688,1747206658238,-400.0,0.00011232,2]
[361019689,1747206658247,-400.0,0.00011232,2]
[361019690,1747206658257,-400.0,0.00011232,2]
[361019691,1747206658274,-400.0,0.00011232,2]
[361019692,1747206658284,-898.82,0.00011232,2]
[361019693,1747206658293,-1494.8,0.00011232,2]
[361019694,1747206658304,-400.0,0.00011232,2]
[361019695,1747206658313,-400.0,0.00011232,2]
[361019696,1747206658323,-853.96,0.00011232,2]
[361019697,1747206658332,-400.0,0.00011232,2]
[361019698,1747206658344,-594.76,0.00011232,2]
[361019699,1747206658354,-5859.25,0.00011232,2]
[361019700,1747206658363,-513.18,0.00011232,2]
[361019701,1747206658373,-400.0,0.00011232,2]
[361019702,1747206658383,-400.0,0.00011232,2]
[361019703,1747206658393,-400.0,0.00011232,2]
[361019704,1747206658403,-696.11,0.00011232,2]
[361019705,1747206658412,-400.0,0.00011232,2]
[361019706,1747206658422,-522.8,0.00011232,2]
[361019707,1747206658432,-400.0,0.00011232,2]
[361019708,1747206658442,-400.0,0.00011232,2]
[361019709,1747206658451,-1327.64,0.00011232,2]
[361019710,1747206658461,-400.0,0.00011232,2]
[361019711,1747206658470,-1151.65,0.00011232,2]
[361019712,1747206658480,-400.0,0.00011232,2]
[361019713,1747206658489,-400.0,0.00011232,2]
[361019714,1747206658499,-400.0,0.00011232,2]
[361019715,1747206658508,-4885.58,0.00011232,2]
[361019716,1747206658518,-466.73012511,0.00011232,2]
[361019717,1747206658528,-1150.89,0.00011232,2]
[361019718,1747206658537,-1020.92,0.00011232,2]
[361019719,1747206658547,-712.79,0.00011232,2]
[361019720,1747206658557,-400.0,0.00011232,2]
[361019721,1747206658567,-400.0,0.00011232,2]
[361019722,1747206658577,-400.0,0.00011232,2]
[361019723,1747206658586,-480.74,0.00011232,2]
[361019724,1747206658596,-400.0,0.00011232,2]
[361019725,1747206658605,-1741.04,0.00011232,2]
[361019726,1747206658615,-331.65608304,0.00011232,2]
[361019727,1747206658624,-400.0,0.00011232,2]
[361019728,1747206658633,-551.64,0.00011232,2]
[361019729,1747206658642,-400.0,0.00011232,2]
[361019730,1747206658651,-9487.06,0.00011232,2]
[361019731,1747206658661,-526.9,0.00011232,2]
[361019732,1747206658670,-400.0,0.00011232,2]
[361019733,1747206658680,-687.0,0.00011232,2]
[361019734,1747206658689,-400.0,0.00011232,2]
[361019735,1747206658698,-400.0,0.00011232,2]
[361019736,1747206658707,-400.0,0.00011232,2]
[361019737,1747206658716,-1069.78,0.00011232,2]
[361019738,1747206658726,-430.52,0.00011232,2]
[361019739,1747206658735,-232.01542962,0.00011232,2]
[361019740,1747206658744,-400.0,0.00011232,2]
[361019741,1747206658755,-400.0,0.00011232,2]
[361019742,1747206658765,-400.0,0.00011232,2]
[361019743,1747206658775,-400.0,0.00011232,2]
[361019744,1747206658785,-407.58,0.00011232,2]
[361019745,1747206658794,-400.0,0.00011232,2]
[361019746,1747206658804,-400.0,0.00011232,2]
[361019747,1747206658813,-1249.16,0.00011232,2]
[361019748,1747206658823,-705.33,0.00011232,2]
[361019749,1747206658833,-1047.53,0.00011232,2]
[361019750,1747206658842,-400.0,0.00011232,2]
[361019751,1747206658852,-1319.82,0.00011232,2]
[361019752,1747206658861,-2095.29,0.00011232,2]
[361019753,1747206658871,-400.0,0.00011232,2]
[361019754,1747206658880,-400.0,0.00011232,2]
[361019755,1747206658890,-468.56,0.00011232,2]
[361019756,1747206658899,-400.0,0.00011232,2]
[361019757,1747206658909,-1428.57,0.00011232,2]
[361019758,1747206658920,-636.96,0.00011232,2]
[361019759,1747206658929,-400.0,0.00011232,2]
[361019760,1747206658939,-416.3,0.00011232,2]
[361019761,1747206658949,-1060.15,0.00011232,2]
[361019762,1747206658958,-400.0,0.00011232,2]
[361019763,1747206658967,-1127.51,0.00011232,2]
[361019764,1747206658977,-709.99,0.00011232,2]
[361019765,1747206658986,-737.32,0.00011232,2]
[361019766,1747206658996,-400.0,0.00011232,2]
[361019767,1747206659007,-1551.6,0.00011232,2]
[361019768,1747206659016,-400.0,0.00011232,2]
[361019769,1747206659027,-10260.55,0.00011232,2]
[361019770,1747206659037,-400.0,0.00011232,2]
[361019771,1747206659047,-715.04,0.00011232,2]
[361019772,1747206659057,-400.0,0.00011232,2]
[361019773,1747206659066,-1225.02,0.00011232,2]
[361019774,1747206659075,-4827.08,0.00011232,2]
[361019775,1747206659085,-400.0,0.00011232,2]
[361019776,1747206659094,-413.07,0.00011232,2]
[361019777,1747206659105,-400.0,0.00011232,2]
[361019778,1747206659114,-301.50672,0.00011232,2]
[361019779,1747206659125,-400.0,0.00011232,2]
[361019780,1747206659136,-1124.78,0.00011232,2]
[361019781,1747206659146,-400.0,0.00011232,2]
[361019782,1747206659155,-400.0,0.00011232,2]
[361019783,1747206659165,-400.0,0.00011232,2]
[361019784,1747206659175,-400.0,0.00011232,2]
[361019785,1747206659185,-400.0,0.00011232,2]
[361019786,1747206659195,-1126.87,0.00011232,2]
[361019787,1747206659204,-1612.02,0.00011232,2]
[361019788,1747206659213,-1470.88,0.00011232,2]
[361019789,1747206659223,-400.0,0.00011232,2]
[361019790,1747206659232,-400.0,0.00011232,2]
[361019791,1747206659242,-456.75,0.00011232,2]
[361019792,1747206659251,-400.0,0.00011232,2]
[361019793,1747206659262,-400.0,0.00011232,2]
[361019794,1747206659271,-400.0,0.00011232,2]
[361019795,1747206659281,-400.0,0.00011232,2]
[361019796,1747206659291,-400.0,0.00011232,2]
[361019797,1747206659300,-2756.49,0.00011232,2]
[361019798,1747206659310,-401.55690558,0.00011232,2]
[361019799,1747206659320,-400.0,0.00011232,2]
[361019800,1747206659329,-400.0,0.00011232,2]
[361019801,1747206659340,-400.0,0.00011232,2]
[361019802,1747206659350,-400.0,0.00011232,2]
[361019803,1747206659359,-3363.5,0.00011232,2]
[361019804,1747206659368,-439.11,0.00011232,2]
[361019805,1747206659378,-494.99,0.00011232,2]
[361019806,1747206659387,-400.0,0.00011232,2]
[361019807,1747206659397,-4234.3,0.00011232,2]
[361019808,1747206659407,-400.0,0.00011232,2]
[361019809,1747206659416,-1431.45,0.00011232,2]
[361019810,1747206659427,-439.95,0.00011232,2]
[361019811,1747206659438,-400.0,0.00011232,2]
[361019812,1747206659447,-1402.78,0.00011232,2]
[361019813,1747206659458,-2162.91,0.00011232,2]
[361019814,1747206659467,-2108.67,0.00011232,2]
[361019815,1747206659476,-400.0,0.00011232,2]
[361019816,1747206659485,-400.0,0.00011232,2]
[361019817,1747206659494,-5734.62,0.00011232,2]
[361019818,1747206659503,-451.67516497,0.00011232,2]
[361019819,1747206659513,-424.67,0.00011232,2]
[361019820,1747206659522,-404.30381318,0.00011232,2]
[361019821,1747206659532,-400.0,0.00011232,2]
[361019822,1747206659542,-400.0,0.00011232,2]
[361019823,1747206659551,-400.0,0.00011232,2]
[361019824,1747206659561,-999.5,0.00011232,2]
[361019825,1747206659571,-400.0,0.00011232,2]
[361019826,1747206659580,-848.71,0.00011232,2]
[361019827,1747206659589,-400.0,0.00011232,2]
[361019828,1747206659598,-1265.55,0.00011232,2]
[361019829,1747206659608,-400.0,0.00011232,2]
[361019830,1747206659617,-400.0,0.00011232,2]
[361019831,1747206659628,-400.0,0.00011232,2]
[361019832,1747206659639,-400.0,0.00011232,2]
[361019833,1747206659650,-608.01,0.00011232,2]
[361019834,1747206659660,-400.0,0.00011232,2]
[361019835,1747206659669,-1490.42,0.00011232,2]
[361019836,1747206659678,-1018.01,0.00011232,2]
[361019837,1747206659688,-847.84,0.00011232,2]
[361019838,1747206659697,-442.81,0.00011232,2]
[361019839,1747206659706,-400.0,0.00011232,2]
[361019840,1747206659715,-400.0,0.00011232,2]
[361019841,1747206659725,-525.43,0.00011232,2]
[361019842,1747206659735,-400.0,0.00011232,2]
[361019843,1747206659744,-1736.64,0.00011232,2]
[361019844,1747206659753,-589.58,0.00011232,2]
[361019845,1747206659762,-400.0,0.00011232,2]
[361019846,1747206659771,-400.0,0.00011232,2]
[361019847,1747206659781,-400.0,0.00011232,2]
[361019848,1747206659790,-423.45,0.00011232,2]
[361019849,1747206659800,-1996.67,0.00011232,2]
[361019850,1747206659809,-1218.47,0.00011232,2]
[361019851,1747206659818,-989.29,0.00011232,2]
[361019852,1747206659828,-889.37,0.00011232,2]
[361019853,1747206659837,-400.0,0.00011232,2]
[361019854,1747206659847,-389.53787232,0.00011232,2]
[361019855,1747206659856,-400.0,0.00011232,2]
[361019856,1747206659866,-988.93,0.00011232,2]
[361019857,1747206659876,-1901.6,0.00011232,2]
[361019858,1747206659885,-575.42,0.00011232,2]
[361019859,1747206659894,-400.0,0.00011232,2]
[361019860,1747206659904,-770.93,0.00011232,2]
[361019861,1747206659914,-400.0,0.00011232,2]
[361019862,1747206659923,-400.0,0.00011232,2]
[361019863,1747206659932,-400.0,0.00011232,2]
[361019864,1747206659942,-400.0,0.00011232,2]
[361019865,1747206659951,-521.47,0.00011232,2]
[361019866,1747206659961,-888.01,0.00011232,2]
[361019867,1747206659970,-654.38,0.00011232,2]
[361019868,1747206659979,-493.22,0.00011232,2]